[Event "Romanian Open 2019"]
[Site "Alba Iulia"]
[Date "2019.10.31"]
[Round "6.8"]
[White "Banzea, Alexandru-Bogdan"]
[Black "Gomes, Mary Ann"]
[Result "0-1"]
[ECO "B42"]
[WhiteElo "2389"]
[BlackElo "2268"]
[Annotator "NA RC"]
[PlyCount "86"]
[EventDate "2019.10.28"]
[EventType "swiss"]
[EventCountry "ROU"]
[SourceTitle "playchess.com"]
[Source "ChessBase"]
[SourceQuality "1"]
[TimeControl "5400+30"]

1. e4 {[%emt 0:00:00]} c5 {[%emt 0:00:00]} 2. Nf3 {[%emt 0:00:03]} e6 {[%emt 0:00:00]} 3. d4 {[%emt 0:00:06]} cxd4 {[%emt 0:00:00]} 4. Nxd4 {[%emt 0:00:06]} a6 {[%emt 0:00:00]} 5. Bd3 {[%emt 0:00:17]} Qc7 {[%emt 0:00:16]} 6. O-O {[%emt 0:00:55]} Nf6 {[%emt 0:00:07]} 7. Be3 {[%emt 0:03:02]} d6 {[%emt 0:00:33]} 8. Nd2 {[%emt 0:04:10]} Nbd7 {[%emt 0:00:32]} 9. f4 {[%emt 0:00:22]} Be7 {[%emt 0:00:53]} 10. Kh1 {[%emt 0:02:42]} Nc5 {[%emt 0:00:35]} 11. b4 {[%emt 0:01:32]} Na4 {[%emt 0:02:43]} 12. Qf3 {[%emt 0:02:43]} Nc3 {[%emt 0:02:05]} 13. a4 {[%emt 0:05:30]} e5 {[%emt 0:03:48]} 14. Nf5 {[%emt 0:01:19]} Bxf5 {[%emt 0:00:09]} 15. exf5 {[%emt 0:00:05]} Nfd5 {[%emt 0:00:31]} 16. Ne4 {[%emt 0:08:10]} Nxe3 {[%emt 0:14:34]} 17. Qxe3 {[%emt 0:01:50]} Nd5 {[%emt 0:01:10]} 18. Qg3 {[%emt 0:00:36]} Bf6 {[%emt 0:07:04]} 19. Rae1 {[%emt 0:07:00]} O-O-O {[%emt 0:07:37]} 20. fxe5 {[%emt 0:05:16]} Bxe5 {[%emt 0:00:34]} 21. Qf2 {[%emt 0:01:37]} Nxb4 {[%emt 0:04:12]} 22. Rb1 {[%emt 0:00:56]} Nc6 {[%emt 0:01:11]} 23. c3 {[%emt 0:01:20]} Na5 {[%emt 0:09:52]} 24. f6 {[%emt 0:01:51]} g6 {[%emt 0:02:38]} 25. Qe2 {[%emt 0:03:58]} Rhe8 {[%emt 0:10:37]} 26. Qg4+ {[%emt 0:08:01]} Qd7 {[%emt 0:01:21]} 27. Qh4 {[%emt 0:00:08]} h6 {[%emt 0:01:40]} 28. h3 {[%emt 0:02:06]} h5 {[%emt 0:07:13]} 29. Nd2 {[%emt 0:03:49]} d5 {[%emt 0:01:15]} 30. Nb3 {[%emt 0:02:45]} Nxb3 {[%emt 0:00:55]} 31. Rxb3 {[%emt 0:00:08]} Bb8 {[%emt 0:01:08]} 32. Rfb1 {[%emt 0:09:14]} Qd6 {[%emt 0:02:00]} 33. g3 {[%emt 0:02:11]} Rd7 {[%emt 0:00:18]} 34. Qf4 {[%emt 0:05:08]} Qxf4 {[%emt 0:02:55]} 35. gxf4 {[%emt 0:00:04]} Re6 {[%emt 0:00:08]} 36. f5 {[%emt 0:01:19]} Rxf6 {[%emt 0:00:05]} 37. Rg1 {[%emt 0:01:18]} Re7 {[%emt 0:05:01]} 38. fxg6 {[%emt 0:02:13]} Re3 {[%emt 0:01:10]} 39. Rf1 {[%emt 0:02:14]} Rxh3+ {[%emt 0:00:21]} 40. Kg2 {[%emt 0:00:09]} Rg3+ {[%emt 0:00:20]} 41. Kh1 {[%emt 0:00:04]} Rxf1+ {[%emt 0:00:39]} 42. Bxf1 {[%emt 0:00:07]} fxg6 {[%emt 0:00:06]} 43. Bg2 {[%emt 0:00:12]} Rd3 {[%emt 0:00:42]} 0-1

[Event "Romanian Open 2019"]
[Site "Alba Iulia"]
[Date "2019.10.31"]
[Round "6.9"]
[White "Nastore, Pavel-Alexandru"]
[Black "Nester, Ihor"]
[Result "1/2-1/2"]
[ECO "C70"]
[WhiteElo "2030"]
[BlackElo "2381"]
[Annotator "RC"]
[PlyCount "109"]
[EventDate "2019.10.28"]
[EventType "swiss"]
[EventCountry "ROU"]
[SourceTitle "playchess.com"]
[Source "ChessBase"]
[SourceQuality "1"]
[TimeControl "5400+30"]

1. e4 {[%emt 0:00:00]} e5 {[%emt 0:03:01]} 2. Nf3 {[%emt 0:00:00]} Nc6 {[%emt 0:00:04]} 3. Bb5 {[%emt 0:00:00]} a6 {[%emt 0:00:06]} 4. Ba4 {[%emt 0:00:00]} Nge7 {[%emt 0:00:35]} 5. O-O {[%emt 0:00:07]} g6 {[%emt 0:00:08]} 6. c3 {[%emt 0:05:52]} Bg7 {[%emt 0:00:26]} 7. d4 {[%emt 0:01:44]} exd4 {[%emt 0:00:27]} 8. cxd4 {[%emt 0:00:27]} b5 {[%emt 0:00:05]} 9. Bb3 {[%emt 0:01:47]} d6 {[%emt 0:00:32]} 10. h3 {[%emt 0:01:49]} O-O {[%emt 0:00:22]} 11. Bg5 {[%emt 0:08:52]} h6 {[%emt 0:00:34]} 12. Be3 {[%emt 0:02:09]} Na5 {[%emt 0:00:46]} 13. Bc2 {[%emt 0:00:32]} Nc4 {[%emt 0:02:21]} 14. Bc1 {[%emt 0:01:41]} c5 {[%emt 0:00:32]} 15. Nc3 {[%emt 0:07:17]} cxd4 {[%emt 0:01:26]} 16. Nxd4 {[%emt 0:01:45]} Bb7 {[%emt 0:00:49]} 17. b3 {[%emt 0:08:23]} Nb6 {[%emt 0:26:09]} 18. f4 {[%emt 0:03:27]} Nc6 {[%emt 0:04:48]} 19. Be3 {[%emt 0:10:47]} Rc8 {[%emt 0:01:54]} 20. Nce2 {[%emt 0:05:57]} Re8 {[%emt 0:14:41]} 21. Re1 {[%emt 0:04:47]} Nb4 {[%emt 0:01:51]} 22. Bb1 {[%emt 0:08:19]} Bxe4 {[%emt 0:00:23]} 23. Qd2 {[%emt 0:00:46]} N4d5 {[%emt 0:02:54]} 24. Bf2 {[%emt 0:00:23]} Qd7 {[%emt 0:12:08]} 25. f5 {[%emt 0:03:34]} g5 {[%emt 0:03:10]} 26. h4 {[%emt 0:00:32]} Qd8 {[%emt 0:01:02]} 27. Ng3 {[%emt 0:01:05]} Bxb1 {[%emt 0:00:11]} 28. Raxb1 {[%emt 0:00:28]} Nf4 {[%emt 0:03:58]} 29. Rxe8+ {[%emt 0:00:59]} Qxe8 {[%emt 0:00:02]} 30. hxg5 {[%emt 0:00:09]} hxg5 {[%emt 0:00:04]} 31. Re1 {[%emt 0:03:09]} Qd8 {[%emt 0:01:58]} 32. Ne4 {[%emt 0:08:08]} d5 {[%emt 0:09:26]} 33. Ng3 {[%emt 0:02:50]} Qc7 {[%emt 0:01:33]} 34. f6 {[%emt 0:05:04]} Bxf6 {[%emt 0:00:02]} 35. Ngf5 {[%emt 0:00:06]} Nd7 {[%emt 0:06:03]} 36. Ne7+ {[%emt 0:03:46]} Bxe7 {[%emt 0:00:07]} 37. Rxe7 {[%emt 0:00:02]} Qc1+ {[%emt 0:01:09]} 38. Qxc1 {[%emt 0:00:08]} Rxc1+ {[%emt 0:00:03]} 39. Kh2 {[%emt 0:00:03]} Nf6 {[%emt 0:00:22]} 40. Be1 {[%emt 0:01:50]} Ra1 {[%emt 0:03:04]} 41. Bc3 {[%emt 0:01:14]} Rxa2 {[%emt 0:00:02]} 42. Nf5 {[%emt 0:00:17]} Rxg2+ {[%emt 0:00:12]} 43. Kh1 {[%emt 0:00:03]} Re2 {[%emt 0:00:57]} 44. Bxf6 {[%emt 0:00:18]} Rxe7 {[%emt 0:00:07]} 45. Nxe7+ {[%emt 0:00:49]} Kf8 {[%emt 0:00:01]} 46. Bxg5 {[%emt 0:00:22]} Ne6 {[%emt 0:00:01]} 47. Bh4 {[%emt 0:00:07]} d4 {[%emt 0:00:40]} 48. Nd5 {[%emt 0:00:30]} a5 {[%emt 0:00:54]} 49. Be1 {[%emt 0:00:35]} a4 {[%emt 0:00:01]} 50. bxa4 {[%emt 0:00:21]} bxa4 {[%emt 0:00:01]} 51. Nb6 {[%emt 0:00:10]} a3 {[%emt 0:00:59]} 52. Bb4+ {[%emt 0:00:05]} Kg7 {[%emt 0:00:03]} 53. Bxa3 {[%emt 0:00:04]} Kf6 {[%emt 0:00:10]} 54. Kg2 {[%emt 0:00:08]} Ke5 {[%emt 0:00:05]} 55. Kf3 {[%emt 0:00:32]} 1/2-1/2

[Event "Romanian Open 2019"]
[Site "Alba Iulia"]
[Date "2019.10.31"]
[Round "6.11"]
[White "Talu, Mircea"]
[Black "Manush Shah"]
[Result "1/2-1/2"]
[ECO "D52"]
[WhiteElo "2288"]
[BlackElo "2352"]
[Annotator "NA"]
[PlyCount "54"]
[EventDate "2019.10.28"]
[EventType "swiss"]
[EventCountry "ROU"]
[SourceTitle "playchess.com"]
[Source "ChessBase"]
[SourceQuality "1"]
[TimeControl "5400+30"]

1. d4 {[%emt 0:00:00]} d5 {[%emt 0:02:05]} 2. c4 {[%emt 0:00:00]} c6 {[%emt 0:00:08]} 3. Nf3 {[%emt 0:00:00]} Nf6 {[%emt 0:00:05]} 4. Nc3 {[%emt 0:00:00]} e6 {[%emt 0:00:05]} 5. Bg5 {[%emt 0:00:32]} Nbd7 {[%emt 0:00:30]} 6. e3 {[%emt 0:01:48]} Qa5 {[%emt 0:00:02]} 7. Nd2 {[%emt 0:01:59]} Bb4 {[%emt 0:00:20]} 8. Qc2 {[%emt 0:24:49]} dxc4 {[%emt 0:04:02]} 9. Bxf6 {[%emt 0:00:11]} Nxf6 {[%emt 0:00:15]} 10. Nxc4 {[%emt 0:00:14]} Qd5 {[%emt 0:00:12]} 11. a3 {[%emt 0:01:46]} Bxc3+ {[%emt 0:00:08]} 12. Qxc3 {[%emt 0:00:07]} O-O {[%emt 0:00:48]} 13. f3 {[%emt 0:06:55]} c5 {[%emt 0:04:35]} 14. Rd1 {[%emt 0:07:10]} b6 {[%emt 0:06:13]} 15. e4 {[%emt 0:04:31]} Qg5 {[%emt 0:01:47]} 16. Qe3 {[%emt 0:03:58]} Qxe3+ {[%emt 0:01:39]} 17. Nxe3 {[%emt 0:00:18]} cxd4 {[%emt 0:00:02]} 18. Rxd4 {[%emt 0:00:09]} Bb7 {[%emt 0:00:26]} 19. Bb5 {[%emt 0:01:50]} Rac8 {[%emt 0:05:25]} 20. Ke2 {[%emt 0:00:47]} Rc5 {[%emt 0:00:27]} 21. Bc4 {[%emt 0:01:23]} Rfc8 {[%emt 0:05:18]} 22. Rhd1 {[%emt 0:00:57]} Kf8 {[%emt 0:02:01]} 23. b4 {[%emt 0:09:43]} Rxc4 {[%emt 0:03:40]} 24. Rxc4 {[%emt 0:00:02]} Ba6 {[%emt 0:00:12]} 25. Rdc1 {[%emt 0:00:03]} Nd7 {[%emt 0:01:39]} 26. Kf2 {[%emt 0:00:17]} Bxc4 {[%emt 0:00:06]} 27. Rxc4 {[%emt 0:00:05]} Rxc4 {[%emt 0:00:30]} 1/2-1/2

[Event "Romanian Open 2019"]
[Site "Alba Iulia"]
[Date "2019.10.31"]
[Round "6.12"]
[White "Stoleriu, George"]
[Black "Mehmed, Elif"]
[Result "1/2-1/2"]
[ECO "B51"]
[WhiteElo "2351"]
[BlackElo "2122"]
[Annotator "NA"]
[PlyCount "62"]
[EventDate "2019.10.28"]
[EventType "swiss"]
[EventCountry "ROU"]
[SourceTitle "playchess.com"]
[Source "ChessBase"]
[SourceQuality "1"]
[TimeControl "5400+30"]

1. e4 {[%emt 0:03:04]} c5 {[%emt 0:00:00]} 2. Nf3 {[%emt 0:00:04]} d6 {[%emt 0:00:00]} 3. Bb5+ {[%emt 0:00:04]} Nd7 {[%emt 0:00:00]} 4. d4 {[%emt 0:01:11]} cxd4 {[%emt 0:00:00]} 5. Qxd4 {[%emt 0:00:03]} a6 {[%emt 0:00:13]} 6. Bxd7+ {[%emt 0:00:03]} Bxd7 {[%emt 0:00:08]} 7. c4 {[%emt 0:00:04]} Nf6 {[%emt 0:00:09]} 8. Nc3 {[%emt 0:00:04]} g6 {[%emt 0:00:11]} 9. b3 {[%emt 0:15:10]} Bg7 {[%emt 0:02:00]} 10. Bb2 {[%emt 0:00:10]} O-O {[%emt 0:00:32]} 11. O-O {[%emt 0:03:40]} b5 {[%emt 0:02:27]} 12. cxb5 {[%emt 0:07:53]} axb5 {[%emt 0:00:12]} 13. Nd5 {[%emt 0:06:12]} Nh5 {[%emt 0:16:04]} 14. Qd2 {[%emt 0:00:49]} Bxb2 {[%emt 0:02:08]} 15. Qxb2 {[%emt 0:00:07]} Bc6 {[%emt 0:03:17]} 16. Nd4 {[%emt 0:02:31]} Bxd5 {[%emt 0:00:11]} 17. exd5 {[%emt 0:00:05]} Qd7 {[%emt 0:00:10]} 18. Qe2 {[%emt 0:02:36]} Nf6 {[%emt 0:02:39]} 19. Qxb5 {[%emt 0:08:13]} Qxb5 {[%emt 0:01:28]} 20. Nxb5 {[%emt 0:00:05]} Nxd5 {[%emt 0:00:09]} 21. Rad1 {[%emt 0:04:22]} Nb4 {[%emt 0:02:42]} 22. a4 {[%emt 0:00:03]} Rfc8 {[%emt 0:05:31]} 23. Rfe1 {[%emt 0:01:38]} Kf8 {[%emt 0:00:42]} 24. g3 {[%emt 0:01:58]} d5 {[%emt 0:00:36]} 25. h4 {[%emt 0:02:30]} e6 {[%emt 0:06:18]} 26. Re2 {[%emt 0:02:09]} Rc5 {[%emt 0:01:23]} 27. Kg2 {[%emt 0:02:42]} Re8 {[%emt 0:05:17]} 28. Rd4 {[%emt 0:05:05]} Nc6 {[%emt 0:02:53]} 29. Rdd2 {[%emt 0:00:28]} Nb4 {[%emt 0:02:59]} 30. Rd4 {[%emt 0:00:45]} Nc6 {[%emt 0:00:48]} 31. Rdd2 {[%emt 0:00:19]} Nb4 {[%emt 0:09:27]} 1/2-1/2

[Event "Romanian Open 2019"]
[Site "Alba Iulia"]
[Date "2019.11.01"]
[Round "7.1"]
[White "Omelja, Artem"]
[Black "Harutjunyan, Gevorg"]
[Result "1/2-1/2"]
[ECO "E92"]
[WhiteElo "2424"]
[BlackElo "2428"]
[Annotator "NA"]
[PlyCount "40"]
[EventDate "2019.10.28"]
[EventType "swiss"]
[EventCountry "ROU"]
[SourceTitle "playchess.com"]
[Source "ChessBase"]
[SourceQuality "1"]
[TimeControl "5400+30"]

1. Nf3 {[%emt 0:00:00]} Nf6 {[%emt 0:00:00]} 2. c4 {[%emt 0:00:00]} g6 {[%emt 0:00:00]} 3. Nc3 {[%emt 0:00:00]} Bg7 {[%emt 0:00:00]} 4. e4 {[%emt 0:00:03]} d6 {[%emt 0:00:20]} 5. d4 {[%emt 0:00:08]} O-O {[%emt 0:00:08]} 6. Be2 {[%emt 0:00:06]} e5 {[%emt 0:00:09]} 7. d5 {[%emt 0:00:09]} a5 {[%emt 0:02:27]} 8. Bg5 {[%emt 0:00:37]} h6 {[%emt 0:00:46]} 9. Bh4 {[%emt 0:00:19]} Na6 {[%emt 0:00:20]} 10. Nd2 {[%emt 0:00:16]} Qe8 {[%emt 0:00:53]} 11. b3 {[%emt 0:01:51]} Nc5 {[%emt 0:05:32]} 12. Qc2 {[%emt 0:34:17]} Bd7 {[%emt 0:03:03]} 13. f3 {[%emt 0:01:58]} Nh5 {[%emt 0:15:30]} 14. Bf2 {[%emt 0:00:12]} Qe7 {[%emt 0:00:47]} 15. g3 {[%emt 0:04:41]} f5 {[%emt 0:02:20]} 16. O-O-O {[%emt 0:07:06]} Nf6 {[%emt 0:00:58]} 17. Be3 {[%emt 0:08:01]} Na6 {[%emt 0:13:37]} 18. a3 {[%emt 0:04:31]} c6 {[%emt 0:08:27]} 19. Kb1 {[%emt 0:02:04]} Rfc8 {[%emt 0:02:31]} 20. Qb2 {[%emt 0:00:12]} Qe8 {[%emt 0:13:15]} 1/2-1/2

[Event "Romanian Open 2019"]
[Site "Alba Iulia"]
[Date "2019.11.01"]
[Round "7.3"]
[White "Manolache, Marius"]
[Black "David, Alexandru-Vasile"]
[Result "1/2-1/2"]
[ECO "D38"]
[WhiteElo "2548"]
[BlackElo "2424"]
[Annotator "ChessBase"]
[PlyCount "26"]
[EventDate "2019.10.28"]
[EventType "swiss"]
[EventCountry "ROU"]
[SourceTitle "playchess.com"]
[Source "ChessBase"]
[SourceQuality "1"]
[TimeControl "5400+30"]

1. d4 {[%emt 0:00:00]} Nf6 {[%emt 0:00:24]} 2. c4 {[%emt 0:00:00]} e6 {[%emt 0:00:04]} 3. Nf3 {[%emt 0:00:00]} d5 {[%emt 0:00:24]} 4. Nc3 {[%emt 0:01:47]} Bb4 {[%emt 0:00:05]} 5. Bg5 {[%emt 0:03:55]} h6 {[%emt 0:01:35]} 6. Bxf6 {[%emt 0:00:27]} Qxf6 {[%emt 0:00:06]} 7. Qa4+ {[%emt 0:00:53]} Nc6 {[%emt 0:00:06]} 8. e3 {[%emt 0:00:39]} O-O {[%emt 0:01:52]} 9. Qb3 {[%emt 0:01:58]} dxc4 {[%emt 0:03:23]} 10. Bxc4 {[%emt 0:00:46]} Bd6 {[%emt 0:00:08]} 11. Qc2 {[%emt 0:08:10]} e5 {[%emt 0:01:41]} 12. Nd5 {[%emt 0:00:39]} Qd8 {[%emt 0:00:49]} 13. dxe5 {[%emt 0:01:06]} Nxe5 {[%emt 0:03:03]} 1/2-1/2

[Event "Romanian Open 2019"]
[Site "Alba Iulia"]
[Date "2019.11.01"]
[Round "7.6"]
[White "Istratescu, Andrei"]
[Black "Nastore, Pavel-Alexandru"]
[Result "1-0"]
[ECO "A67"]
[WhiteElo "2564"]
[BlackElo "2030"]
[Annotator "ChessBase"]
[PlyCount "75"]
[EventDate "2019.10.28"]
[EventType "swiss"]
[EventCountry "ROU"]
[SourceTitle "playchess.com"]
[Source "ChessBase"]
[SourceQuality "1"]
[TimeControl "5400+30"]

1. d4 {[%emt 0:00:09]} Nf6 {[%emt 0:00:00]} 2. c4 {[%emt 0:01:12]} c5 {[%emt 0:00:00]} 3. d5 {[%emt 0:00:03]} e6 {[%emt 0:00:00]} 4. Nc3 {[%emt 0:00:06]} exd5 {[%emt 0:00:00]} 5. cxd5 {[%emt 0:00:04]} d6 {[%emt 0:00:00]} 6. e4 {[%emt 0:00:10]} g6 {[%emt 0:00:00]} 7. f4 {[%emt 0:01:03]} Bg7 {[%emt 0:00:45]} 8. Bb5+ {[%emt 0:02:51]} Nfd7 {[%emt 0:00:05]} 9. a4 {[%emt 0:00:20]} O-O {[%emt 0:00:06]} 10. Nf3 {[%emt 0:00:05]} Na6 {[%emt 0:00:08]} 11. O-O {[%emt 0:00:16]} Nb4 {[%emt 0:00:10]} 12. Kh1 {[%emt 0:04:05]} a6 {[%emt 0:08:40]} 13. Bxd7 {[%emt 0:00:32]} Bxd7 {[%emt 0:00:10]} 14. f5 {[%emt 0:00:03]} Qe7 {[%emt 0:03:28]} 15. Bg5 {[%emt 0:03:56]} f6 {[%emt 0:02:55]} 16. Bf4 {[%emt 0:02:46]} g5 {[%emt 0:00:29]} 17. Bg3 {[%emt 0:01:34]} b5 {[%emt 0:13:26]} 18. b3 {[%emt 0:05:45]} Rfc8 {[%emt 0:05:38]} 19. Qd2 {[%emt 0:10:01]} h6 {[%emt 0:23:29]} 20. h4 {[%emt 0:12:02]} Be8 {[%emt 0:15:47]} 21. hxg5 {[%emt 0:04:09]} hxg5 {[%emt 0:00:54]} 22. Rfd1 {[%emt 0:08:46]} Bd7 {[%emt 0:02:22]} 23. Rdc1 {[%emt 0:04:19]} Bh6 {[%emt 0:01:40]} 24. Nh2 {[%emt 0:00:24]} Bg7 {[%emt 0:03:07]} 25. Ng4 {[%emt 0:00:35]} c4 {[%emt 0:01:41]} 26. bxc4 {[%emt 0:00:46]} bxc4 {[%emt 0:01:08]} 27. Nf2 {[%emt 0:00:25]} Rab8 {[%emt 0:01:35]} 28. Ncd1 {[%emt 0:06:15]} Nd3 {[%emt 0:11:18]} 29. Nxd3 {[%emt 0:00:21]} cxd3 {[%emt 0:00:23]} 30. Rxc8+ {[%emt 0:00:06]} Rxc8 {[%emt 0:00:06]} 31. Qxd3 {[%emt 0:00:04]} Bf8 {[%emt 0:01:07]} 32. Nf2 {[%emt 0:00:49]} Qh7+ {[%emt 0:00:40]} 33. Kg1 {[%emt 0:00:34]} Bxa4 {[%emt 0:00:30]} 34. Qxa6 {[%emt 0:00:23]} Rc3 {[%emt 0:00:30]} 35. Bxd6 {[%emt 0:02:21]} Bb5 {[%emt 0:02:07]} 36. Qxb5 {[%emt 0:03:45]} Bxd6 {[%emt 0:00:05]} 37. Ra8+ {[%emt 0:00:12]} Bf8 {[%emt 0:00:17]} 38. Rxf8+ {[%emt 0:00:06]} 1-0

[Event "Romanian Open 2019"]
[Site "Alba Iulia"]
[Date "2019.11.01"]
[Round "7.8"]
[White "Moksh Amit Doshi"]
[Black "Filip, Lucian-Ioan"]
[Result "1/2-1/2"]
[ECO "E00"]
[WhiteElo "2328"]
[BlackElo "2418"]
[Annotator "NA"]
[PlyCount "134"]
[EventDate "2019.10.28"]
[EventType "swiss"]
[EventCountry "ROU"]
[SourceTitle "playchess.com"]
[Source "ChessBase"]
[SourceQuality "1"]
[TimeControl "5400+30"]

1. d4 {[%emt 0:01:53]} e6 {[%emt 0:00:00]} 2. c4 {[%emt 0:00:07]} Bb4+ {[%emt 0:00:00]} 3. Nc3 {[%emt 0:00:12]} c5 {[%emt 0:00:00]} 4. Nf3 {[%emt 0:02:07]} cxd4 {[%emt 0:06:01]} 5. Qxd4 {[%emt 0:04:06]} Nf6 {[%emt 0:00:56]} 6. Bg5 {[%emt 0:00:40]} Nc6 {[%emt 0:00:13]} 7. Qd3 {[%emt 0:00:42]} h6 {[%emt 0:08:57]} 8. Bh4 {[%emt 0:00:08]} Qa5 {[%emt 0:04:37]} 9. Bxf6 {[%emt 0:04:14]} gxf6 {[%emt 0:00:04]} 10. g3 {[%emt 0:01:20]} Bxc3+ {[%emt 0:22:40]} 11. bxc3 {[%emt 0:00:12]} Ne5 {[%emt 0:00:05]} 12. Nxe5 {[%emt 0:00:47]} Qxe5 {[%emt 0:00:02]} 13. Bg2 {[%emt 0:00:13]} Rb8 {[%emt 0:00:06]} 14. O-O {[%emt 0:06:29]} b6 {[%emt 0:00:08]} 15. Rab1 {[%emt 0:08:56]} Ba6 {[%emt 0:08:04]} 16. Rfd1 {[%emt 0:06:26]} O-O {[%emt 0:20:04]} 17. Qxd7 {[%emt 0:02:14]} Bxc4 {[%emt 0:06:07]} 18. Qxa7 {[%emt 0:01:12]} Qxe2 {[%emt 0:08:54]} 19. a4 {[%emt 0:05:06]} Rfd8 {[%emt 0:01:15]} 20. Re1 {[%emt 0:01:30]} Qd2 {[%emt 0:00:53]} 21. h4 {[%emt 0:02:04]} Qd6 {[%emt 0:06:31]} 22. a5 {[%emt 0:01:33]} bxa5 {[%emt 0:01:07]} 23. Qxa5 {[%emt 0:00:20]} Qd2 {[%emt 0:01:19]} 24. Qh5 {[%emt 0:03:03]} Be2 {[%emt 0:02:52]} 25. Qc5 {[%emt 0:00:07]} Rdc8 {[%emt 0:00:53]} 26. Qe7 {[%emt 0:01:13]} Rxb1 {[%emt 0:00:29]} 27. Rxb1 {[%emt 0:00:08]} Qxc3 {[%emt 0:00:02]} 28. Rb7 {[%emt 0:01:08]} Rf8 {[%emt 0:00:14]} 29. Kh2 {[%emt 0:00:31]} Bf3 {[%emt 0:00:39]} 30. Rc7 {[%emt 0:00:44]} Qd3 {[%emt 0:00:12]} 31. Qxf6 {[%emt 0:00:55]} Bxg2 {[%emt 0:00:08]} 32. Kxg2 {[%emt 0:00:06]} Qe4+ {[%emt 0:00:34]} 33. Kh2 {[%emt 0:00:08]} Qf5 {[%emt 0:01:23]} 34. Qd4 {[%emt 0:01:06]} e5 {[%emt 0:00:51]} 35. Qe3 {[%emt 0:00:13]} Rd8 {[%emt 0:00:30]} 36. Re7 {[%emt 0:03:15]} Rd3 {[%emt 0:00:13]} 37. Rxe5 {[%emt 0:01:10]} Rxe3 {[%emt 0:00:06]} 38. Rxf5 {[%emt 0:00:04]} Ra3 {[%emt 0:00:10]} 39. Rf6 {[%emt 0:01:35]} Kg7 {[%emt 0:00:05]} 40. Rb6 {[%emt 0:00:03]} Ra5 {[%emt 0:01:12]} 41. Kh3 {[%emt 0:01:46]} h5 {[%emt 0:00:10]} 42. Kg2 {[%emt 0:00:49]} f6 {[%emt 0:00:11]} 43. Re6 {[%emt 0:00:30]} Kf7 {[%emt 0:00:13]} 44. Re4 {[%emt 0:00:06]} Kg6 {[%emt 0:00:17]} 45. Kf3 {[%emt 0:00:14]} Kf5 {[%emt 0:01:02]} 46. Rf4+ {[%emt 0:00:07]} Kg6 {[%emt 0:00:04]} 47. Rb4 {[%emt 0:00:08]} Kf5 {[%emt 0:00:11]} 48. Rb3 {[%emt 0:00:07]} Rc5 {[%emt 0:00:05]} 49. Ke3 {[%emt 0:00:05]} Re5+ {[%emt 0:00:12]} 50. Kd3 {[%emt 0:00:22]} Rd5+ {[%emt 0:02:06]} 51. Kc4 {[%emt 0:00:07]} Rd2 {[%emt 0:00:34]} 52. Rf3+ {[%emt 0:00:17]} Kg6 {[%emt 0:00:17]} 53. Rf4 {[%emt 0:00:10]} Ra2 {[%emt 0:00:58]} 54. Kd4 {[%emt 0:00:06]} Ra4+ {[%emt 0:00:10]} 55. Ke3 {[%emt 0:00:01]} Ra3+ {[%emt 0:00:03]} 56. Ke4 {[%emt 0:00:10]} Ra4+ {[%emt 0:00:25]} 57. Kf3 {[%emt 0:00:02]} Ra3+ {[%emt 0:00:08]} 58. Kg2 {[%emt 0:00:04]} Rb3 {[%emt 0:00:20]} 59. f3 {[%emt 0:00:03]} Rb2+ {[%emt 0:00:08]} 60. Kh3 {[%emt 0:00:02]} f5 {[%emt 0:02:23]} 61. Ra4 {[%emt 0:00:52]} Rf2 {[%emt 0:00:21]} 62. Ra3 {[%emt 0:00:13]} Kf6 {[%emt 0:00:09]} 63. Rb3 {[%emt 0:00:16]} Kg6 {[%emt 0:00:10]} 64. Rb6+ {[%emt 0:00:06]} Kg7 {[%emt 0:00:04]} 65. Rb7+ {[%emt 0:00:05]} Kg6 {[%emt 0:00:04]} 66. Rb6+ {[%emt 0:00:04]} Kg7 {[%emt 0:00:03]} 67. Rb5 {[%emt 0:00:19]} Kg6 {[%emt 0:02:26]} 1/2-1/2

[Event "Romanian Open 2019"]
[Site "Alba Iulia"]
[Date "2019.11.01"]
[Round "7.10"]
[White "Secheres, Adrian-Simion"]
[Black "Talu, Mircea"]
[Result "1/2-1/2"]
[ECO "E32"]
[WhiteElo "2397"]
[BlackElo "2288"]
[Annotator "NA RC"]
[PlyCount "95"]
[EventDate "2019.10.28"]
[EventType "swiss"]
[EventCountry "ROU"]
[SourceTitle "playchess.com"]
[Source "ChessBase"]
[SourceQuality "1"]
[TimeControl "5400+30"]

1. d4 {[%emt 0:00:00]} Nf6 {[%emt 0:01:09]} 2. c4 {[%emt 0:00:00]} e6 {[%emt 0:00:11]} 3. Nc3 {[%emt 0:00:34]} Bb4 {[%emt 0:00:09]} 4. Qc2 {[%emt 0:00:21]} d6 {[%emt 0:00:46]} 5. Bg5 {[%emt 0:00:40]} Nbd7 {[%emt 0:00:50]} 6. e3 {[%emt 0:00:46]} b6 {[%emt 0:01:39]} 7. Bd3 {[%emt 0:01:55]} h6 {[%emt 0:00:20]} 8. Bh4 {[%emt 0:00:25]} Bb7 {[%emt 0:00:17]} 9. f3 {[%emt 0:03:01]} c5 {[%emt 0:01:12]} 10. a3 {[%emt 0:07:40]} Bxc3+ {[%emt 0:00:24]} 11. bxc3 {[%emt 0:00:29]} O-O {[%emt 0:07:35]} 12. Ne2 {[%emt 0:03:57]} Re8 {[%emt 0:00:18]} 13. O-O {[%emt 0:04:50]} e5 {[%emt 0:00:21]} 14. Bf5 {[%emt 0:08:57]} g5 {[%emt 0:03:10]} 15. Bf2 {[%emt 0:02:23]} Qe7 {[%emt 0:10:40]} 16. d5 {[%emt 0:08:49]} Nh5 {[%emt 0:08:43]} 17. g4 {[%emt 0:04:53]} Ng7 {[%emt 0:01:08]} 18. Ng3 {[%emt 0:02:02]} Nf8 {[%emt 0:00:17]} 19. a4 {[%emt 0:07:48]} Bc8 {[%emt 0:12:15]} 20. Bd3 {[%emt 0:03:39]} Qf6 {[%emt 0:01:34]} 21. Kg2 {[%emt 0:05:26]} Ng6 {[%emt 0:06:16]} 22. Bxg6 {[%emt 0:00:06]} Qxg6 {[%emt 0:11:58]} 23. Qxg6 {[%emt 0:00:49]} fxg6 {[%emt 0:00:02]} 24. Ne4 {[%emt 0:00:42]} Rd8 {[%emt 0:00:06]} 25. a5 {[%emt 0:07:45]} Ba6 {[%emt 0:01:03]} 26. axb6 {[%emt 0:05:42]} Bxc4 {[%emt 0:00:13]} 27. Rfd1 {[%emt 0:00:54]} Ne8 {[%emt 0:04:40]} 28. bxa7 {[%emt 0:07:10]} Rd7 {[%emt 0:01:13]} 29. h4 {[%emt 0:04:17]} gxh4 {[%emt 0:03:15]} 30. Bxh4 {[%emt 0:00:02]} Rdxa7 {[%emt 0:02:18]} 31. Rxa7 {[%emt 0:00:30]} Rxa7 {[%emt 0:00:05]} 32. Rb1 {[%emt 0:01:27]} Bxd5 {[%emt 0:05:56]} 33. Rb8 {[%emt 0:00:11]} Bxe4 {[%emt 0:00:07]} 34. Rxe8+ {[%emt 0:00:08]} Kf7 {[%emt 0:00:03]} 35. Rd8 {[%emt 0:00:39]} Ra2+ {[%emt 0:00:05]} 36. Bf2 {[%emt 0:01:06]} Ke7 {[%emt 0:00:46]} 37. Rh8 {[%emt 0:00:36]} Bb1 {[%emt 0:14:13]} 38. Rxh6 {[%emt 0:01:54]} Rc2 {[%emt 0:00:02]} 39. e4 {[%emt 0:00:32]} Rxc3 {[%emt 0:00:30]} 40. Bh4+ {[%emt 0:00:56]} Ke8 {[%emt 0:02:49]} 41. Rxg6 {[%emt 0:00:21]} Rd3 {[%emt 0:00:01]} 42. Rg8+ {[%emt 0:00:42]} Kf7 {[%emt 0:00:56]} 43. Rc8 {[%emt 0:00:26]} Bc2 {[%emt 0:00:16]} 44. Rc7+ {[%emt 0:01:41]} Kg6 {[%emt 0:00:05]} 45. Be7 {[%emt 0:01:00]} Bd1 {[%emt 0:00:16]} 46. Rc6 {[%emt 0:00:28]} Bxf3+ {[%emt 0:00:48]} 47. Kf2 {[%emt 0:00:12]} Bxe4 {[%emt 0:00:27]} 48. Rxd6+ 1/2-1/2